Cogmind - Beta 15 @@@ ROGUE MODE // 2025.06.23 @ 14:46:24 Player: Burcsboon Result: Destroyed by 2F-VUU(R) with Subdweller Shrapnel Launcher Performance ------------- Evolutions (0) 0 Regions Visited (3) 600 Robots Destroyed (14) 70 Value Destroyed (316) 316 Prototype IDs (0) 0 Alien Tech Used (0) 0 Bonus (0) 0 TOTAL SCORE: 986 Bonus ------- None Cogmind --------- Core Integrity 0/250 Matter 247/300 Energy 125/125 System Corruption 0% Temperature Cool (0) Movement Walking (120) Location -10/Subcaves Parts ------- > --- POWER (1) -------- Light Ion Engine > --- PROPULSION (2) --- Myomer Leg > --- UTILITY (2) ------ Small Storage Unit Sensor Array > --- WEAPON (2) ------- Battle Rifle Battle Cannon > --- INVENTORY (8) ---- Aluminum Leg Aluminum Leg Aluminum Leg Aluminum Leg Subdweller Laser Bore Cannon Flamer Peak State ------------ > --- POWER ------------ Light Ion Engine > --- PROPULSION ------- Aluminum Leg Myomer Leg > --- UTILITY ---------- Small Storage Unit > --- WEAPON ----------- Battle Rifle Bore Cannon > --- INVENTORY -------- Aluminum Leg Aluminum Leg Aluminum Leg Aluminum Leg Aluminum Leg Sensor Array Subdweller Laser Subdweller Beam Cannon [Rating: 18] Favorites ----------- Power Light Ion Engine Engine Light Ion Engine Propulsion Aluminum Leg Leg Aluminum Leg Utility Small Storage Unit Device Subdweller Optics Storage Small Storage Unit Processor Visual Processing Unit Weapon Battle Rifle Energy Gun Medium Laser Energy Cannon Subdweller Beam Cannon Ballistic Gun Battle Rifle Ballistic Cannon Battle Cannon Launcher Grenade Launcher Build | -11 -10 -10 -10 ------- Run | Yrd Mat Min Sub Slots Evolved . | . . . . Power . | . . . . Propulsion . | . . . . Utility . | . . . . Weapon . | . . . . Parts Attached 19 | 6 1 2 10 Power 2 | 1 . . 1 Engine 2 | 1 . . 1 Core . | . . . . Reactor . | . . . . Propulsion 4 | 2 . 1 1 Treads . | . . . . Leg 4 | 2 . 1 1 Wheel . | . . . . Hover . | . . . . Flight . | . . . . Utility 5 | 1 1 1 2 Device 3 | . . 1 2 Storage 1 | 1 . . . Processor 1 | . 1 . . Hackware . | . . . . Protection . | . . . . Artifact . | . . . . Weapon 8 | 2 . . 6 Energy Gun 2 | 1 . . 1 Energy Cannon 1 | . . . 1 Ballistic Gun 2 | 1 . . 1 Ballistic Cannon 2 | . . . 2 Launcher 1 | . . . 1 Special Weapon . | . . . . Impact Weapon . | . . . . Slashing Weapon . | . . . . Piercing Weapon . | . . . . Special Melee Weapon . | . . . . Unidentified Prototypes . | . . . . Parts Lost 6 | . . . 6 Power 1 | . . . 1 Propulsion 2 | . . . 2 Utility 1 | . . . 1 Weapon 2 | . . . 2 Highest Loss Streak 5 | . . . 5 To Critical Strikes . | . . . . Average Backups 7 | 3 7 7 7 Power . | . 1 1 . Propulsion 4 | 2 3 4 4 Utility 1 | . 1 1 . Weapon 1 | . 1 1 2 Tool/Special . | . . . . Unused Backups 11 | . 6 . 5 Power . | . . . . Propulsion 8 | . 4 . 4 Utility 1 | . 1 . . Weapon 2 | . 1 . 1 Tool/Special . | . . . . Average Slot Usage (%) 97 | . 94 100 97 Engine 13 | . 14 14 13 Leg 28 | . 28 28 28 Device 10 | . . 12 11 Storage 14 | . 14 14 14 Processor 1 | . 8 1 . Energy Gun 6 | . 14 14 3 Energy Cannon 3 | . . . 5 Ballistic Gun 13 | . 14 14 13 Ballistic Cannon 3 | . . . 5 Peak Build Rating 18 | 6 8 8 18 Average Rating 12 | 3 7 7 14 On Entrance 5 | . 6 8 7 Naked Turns . | . . . . Heaviest Build 20 | 14 14 15 20 Greatest Support 35 | 20 20 20 35 Greatest Overweight (x) 1 | 1 . . . Average Overweight (x) . | . . . . Largest Inventory Capacity 8 | 8 8 8 8 Average Capacity 7 | 7 8 8 8 Most Carried 8 | 6 8 8 8 Average Carried 7 | 3 7 7 7 Final Capacity 8 | 8 8 8 8 Final Carried 8 | 6 8 8 7 Class Distribution -------------------- 81% | Mutant 18% | Scavenger-Mutant Dominant Class ---------------- Mutant | -10/Materials Mutant | -10/Mines Mutant | -10/Subcaves Resources | -11 -10 -10 -10 ----------- Run | Yrd Mat Min Sub Matter Collected 827 | 224 168 67 368 Remotely . | . . . . Salvage Created 413 | . 221 137 55 Parts 33 | . 17 11 5 Haulers Intercepted . | . . . . Recyclers Shooed 3 | . . 3 . Parts Field Recycled . | . . . . Retrieved Matter . | . . . . Parts Self-Destructed 11 | . . . 11 Prevented . | . . . . Kills | -11 -10 -10 -10 ------- Run | Yrd Mat Min Sub Combat Hostiles Destroyed 9 | . 6 1 2 Guns 9 | . 6 1 2 Classes Destroyed 7 | . 3 3 1 Worker 1 | . . 1 . Builder 1 | . . 1 . Recycler 1 | . . 1 . Watcher 2 | . 2 . . Swarmer 3 | . 3 . . Grunt 4 | . 3 1 . Subdweller 2 | . . . 2 Best Kill Streak 4 | . 4 2 2 Combat Bots Only 3 | . 3 1 2 Max Kills in Single Turn 1 | . 1 1 1 Gunslinging . | . . . . Exploded . | . . . . Melee . | . . . . Uniques/NPCs Destroyed . | . . . . Combat | -11 -10 -10 -10 -------- Run | Yrd Mat Min Sub Hostile Shots Fired 58 | . 19 12 27 Missed 14 | . 4 5 5 Hits 44 | . 15 7 22 Projectile 44 | . 15 7 22 AOE 4 | . . . 4 Critical Strikes 2 | . . 1 1 Damage Taken 939 | . 157 111 671 Core 278 | . 17 66 195 Absorbed by Shields . | . . . . Core Remaining (%) 100 | 100 . . . Volleys Fired 94 | . 24 19 51 Largest 2 | . 2 2 2 Hottest 105 | . 70 70 105 Shots Fired 180 | . 47 38 95 Gun 139 | . 47 38 54 Cannon 37 | . . . 37 Launcher 4 | . . . 4 Special . | . . . . Kinetic 118 | . 24 19 75 Thermal 58 | . 23 19 16 Explosive 4 | . . . 4 Electromagnetic . | . . . . Robot Hit Streak 10 | . 6 10 7 Robot Miss Streak 3 | . 3 2 2 Penetration Max . | . . . . Secondary Targets . | . . . . Shots Hit Robots 67 | . 27 23 17 Core Hits 33 | . 13 7 13 Critical Kills . | . . . . Critical Parts Destroyed . | . . . . Critical Strikes 1 | . . . 1 Burn 1 | . . . 1 Melee Attacks . | . . . . Impact . | . . . . Slashing . | . . . . Piercing . | . . . . Sneak Attacks . | . . . . Combat Hostiles . | . . . . Follow-up Attacks . | . . . . Damage Inflicted 1183 | . 337 296 550 Guns 818 | . 337 296 185 Cannons 83 | . . . 83 Explosions 282 | . . . 282 Melee . | . . . . Ramming . | . . . . Kinetic 613 | . 223 159 231 Thermal 288 | . 114 137 37 Explosive 282 | . . . 282 Electromagnetic . | . . . . Impact . | . . . . Slashing . | . . . . Piercing . | . . . . Highest Corruption . | . . . . Average Corruption . | . . . . Corruption Purged . | . . . . Corruption Blocked . | . . . . Overload Shots . | . . . . Overflow Damage . | . . . . Projectiles . | . . . . Explosions . | . . . . Melee . | . . . . Knockbacks . | . . . . Impact . | . . . . Kinetic . | . . . . Secondary . | . . . . Self-Inflicted Damage . | . . . . Shots . | . . . . Rammed . | . . . . Targets Rammed . | . . . . Kicked . | . . . . Crushed . | . . . . Highest Temperature 153 | . 57 153 48 Average Temperature 32 | . 20 52 17 Received Heat Transfer 258 | . 69 81 108 Siege Activations . | . . . . Martial Activations . | . . . . Shielding Activations . | . . . . Robots Disrupted . | . . . . Combat Hostiles . | . . . . Robots Corrupted . | . . . . Combat Hostiles . | . . . . Parts Fried . | . . . . Impact Corruptions . | . . . . Robots Melted . | . . . . Combat Hostiles . | . . . . Parts Melted . | . . . . Heat Transferred 925 | . 333 407 185 Parts Sabotaged . | . . . . Parts Stolen . | . . . . Parts Stripped . | . . . . Power Chain Reactions . | . . . . Alert | -11 -10 -10 -10 ------- Run | Yrd Mat Min Sub Maximum Alert Level . | . . . . Low Security (%) 100 | 100 100 100 . Level 1 . | . . . . Level 2 . | . . . . Level 3 . | . . . . Level 4 . | . . . . Level 5 . | . . . . High Security . | . . . . Max Security . | . . . . Peak Influence 82 | . 82 30 . Initial 24 | . . 24 . Average 16 | . 31 5 . Influence Increases 224 | . 179 45 . Destroy 0b10 Robot/C 140 | . 120 20 . Destroy 0b10 Robot/NC 25 | . 10 15 . Destroy Leader 44 | . 34 10 . Lose Combat Pursuer 15 | . 15 . . Influence Decreases 224 | . 117 107 . Entered New Map 38 | . . 38 . Time Decay 186 | . 117 69 . Squads Dispatched 2 | . 2 . . Investigation . | . . . . Extermination . | . . . . Reinforcement 2 | . 2 . . Assault . | . . . . Garrison . | . . . . Intercept . | . . . . Searches Triggered . | . . . . Construction Impeded . | . . . . Haulers Reinforced . | . . . . Active Scanning Responses . | . . . . Cargo Convoy Interrupts . | . . . . Stealth | -11 -10 -10 -10 --------- Run | Yrd Mat Min Sub Distress Signals 2 | . 2 . . Communications Jammed . | . . . . Distress Signals . | . . . . Times Spotted 28 | . 10 2 16 Peak Tracking Total 6 | . 3 2 6 Tactical Retreats 1 | . 1 . . Traps | -11 -10 -10 -10 ------- Run | Yrd Mat Min Sub Traps Triggered . | . . . . Indirectly . | . . . . Trap Hack Attempts . | . . . . Triggered . | . . . . Disarmed . | . . . . Reprogrammed . | . . . . Reused . | . . . . Traps Extracted . | . . . . Installed . | . . . . Triggered . | . . . . Machines | -11 -10 -10 -10 ---------- Run | Yrd Mat Min Sub Machines Disabled . | . . . . Max in Single Turn . | . . . . Machines Repaired . | . . . . Machines Dismantled . | . . . . Machines Sabotaged . | . . . . Overloaded Fab Kills . | . . . . Hacking | -11 -10 -10 -10 --------- Run | Yrd Mat Min Sub Machines Accessed . | . . . . Terminals . | . . . . Fabricators . | . . . . Repair Stations . | . . . . Recycling Units . | . . . . Scanalyzers . | . . . . Garrison Access . | . . . . Total Hacks . | . . . . Successful . | . . . . Failed . | . . . . Catastrophic . | . . . . Database Lockouts . | . . . . Manual . | . . . . Terminals . | . . . . Fabricators . | . . . . Repair Stations . | . . . . Recycling Units . | . . . . Scanalyzers . | . . . . Garrison Access . | . . . . Terminal Hacks . | . . . . Fabricator Hacks . | . . . . Repair Station Hacks . | . . . . Recycling Unit Hacks . | . . . . Scanalyzer . | . . . . Garrison Access Hacks . | . . . . Unauthorized Hacks . | . . . . Terminals . | . . . . Fabricators . | . . . . Repair Stations . | . . . . Recycling Units . | . . . . Scanalyzers . | . . . . Garrison Access . | . . . . Data Cores Recovered . | . . . . Used . | . . . . Hacking Detections . | . . . . Full Trace Events . | . . . . Feedback Events . | . . . . Feedback Blocked . | . . . . Robot Schematics Acquired . | . . . . Robots Built . | . . . . Authchips . | . . . . Time . | . . . . Total Robot Build Rating . | . . . . Part Schematics Acquired . | . . . . Parts Built . | . . . . Authchips . | . . . . Time . | . . . . Total Part Build Rating . | . . . . Parts Repaired . | . . . . Time . | . . . . Parts Recycled . | . . . . Recycled Matter . | . . . . Retrieved Matter . | . . . . Retrieved Components . | . . . . Parts Scanalyzed . | . . . . Part Schematics Acquired . | . . . . Parts Damaged . | . . . . Bothacking | -11 -10 -10 -10 ------------ Run | Yrd Mat Min Sub Used RIF Installer . | . . . . Robots Hacked . | . . . . Non-combat . | . . . . Combat . | . . . . Robot Hacks Applied . | . . . . Relay Couplers Released . | . . . . Fabnet Peak Effective % . | . . . . Robots Rewired . | . . . . Allies Hacked . | . . . . Hacks Repelled . | . . . . Allies | -11 -10 -10 -10 -------- Run | Yrd Mat Min Sub Total Allies . | . . . . Largest Group . | . . . . Highest-Rated Group . | . . . . Highest-Rated Ally . | . . . . Total Orders . | . . . . Ally Attacks . | . . . . Total Damage . | . . . . Kills . | . . . . Allies Corrupted . | . . . . Allies Melted . | . . . . Intel | -11 -10 -10 -10 ------- Run | Yrd Mat Min Sub Active Infowar (turns) 1740 | . 198 315 1227 Optics 1102 | . 198 18 886 Sensors 638 | . . 297 341 Robot Analysis Total . | . . . . Derelict Logs Recovered 2 | . . . 2 Drone Launches . | . . . . Drone Recoveries . | . . . . Exploration | -11 -10 -10 -10 ------------- Run | Yrd Mat Min Sub Turns Passed 2137 | 67 316 315 1439 Spaces Moved 1435 | 49 187 212 987 Core 13 | 13 . . . Treads . | . . . . Legs 1422 | 36 187 212 987 Wheels . | . . . . Hover . | . . . . Flight . | . . . . Fastest Speed 50 | 50 120 120 120 Average Speed 119 | 107 120 120 120 Slowest Speed 120 | 120 120 120 120 Overloaded Moves . | . . . . Propulsion Burnouts . | . . . . Robots Hopped . | . . . . Potential Cave-ins . | . . . . Cave-ins Triggered . | . . . . Exploration Rate (%) 33 | 4 40 34 56 Regions Visited 3 Branch Regions 2 Pre-discovered Areas 2 | . . 1 1 Known Exits Taken . | . . . . Unknown Exits Taken 3 | 1 1 1 . Scrap Searched 3 | . . . 3 Spaces Dug . | . . . . Terrain Destroyed 33 | . . . 33 Melee . | . . . . Projectile 2 | . . . 2 AOE 31 | . . . 31 Terrain Rammed . | . . . . Walls Destroyed . | . . . . Machines Disabled . | . . . . Actions | -11 -10 -10 -10 --------- Run | Yrd Mat Min Sub Total 1678 | 61 234 233 1150 Wait 100 | . 9 . 91 Move 1432 | 48 186 211 987 Hop . | . . . . Pick Up 20 | 7 8 1 4 Fast Attach 10 | 5 1 . 4 Attach 5 | 1 . . 4 Detach . | . . . . Swap 6 | . . 2 4 Drop 11 | . 6 . 5 Fire 94 | . 24 19 51 Melee . | . . . . Ram . | . . . . Kick . | . . . . Crush . | . . . . Escape Stasis . | . . . . Rewire . | . . . . Trap . | . . . . Miscellaneous . | . . . . Route ------- -11/Scrapyard -10/Materials -10/Mines -10/Subcaves (discovered 1 exit: [*Mat]) History --------- Turn | Location | Event 5 | -11/Scrapyard | Discovered new exit (range 16) 68 | -11/Scrapyard | Entered Materials 240 | -10/Materials | Discovered new exit (range 8) 309 | -10/Materials | Build established: Mutant 384 | -10/Materials | Entered Mines 385 | -10/Mines | Learned location of Storage (-8) 415 | -10/Mines | Found a Scrap Suit stashed away for nefarious purposes 453 | -10/Mines | Discovered new exit (range 11) 699 | -10/Mines | Entered Subcaves 700 | -10/Subcaves | Approached by a straggling Scientist 873 | -10/Subcaves | Discovered new exit (range 5) 951 | -10/Subcaves | Ambushed by swarm of Subdwellers 967 | -10/Subcaves | Core integrity fell below 50% 969 | -10/Subcaves | Ambushed by Subdweller buried in earth 1014 | -10/Subcaves | Lost 5 parts (1p1n1u2w) 1184 | -10/Subcaves | Learned Materials trap positions 1477 | -10/Subcaves | Build established: Scavenger-Mutant 1512 | -10/Subcaves | Core integrity fell below 20% 1613 | -10/Subcaves | Shifting Twisted Machinery released Flamer 1617 | -10/Subcaves | Shifting Twisted Machinery released Flamer 1776 | -10/Subcaves | Shifting Twisted Machinery released Mak. Sword 1890 | -10/Subcaves | Build established: Mutant 2136 | -10/Subcaves | Ambushed by Subdweller buried in earth 2138 | -10/Subcaves | Destroyed by 2F-VUU(R) with Subdweller Shrapnel Launcher Last Messages --------------- 01915_ Imp. Ion Engine fries itself beyond repair. 01917_ Acquired 56 matter. 01920_ Acquired 31 matter. 02000_ QU-9U6(g) suffers critical hit (Burn). 02000_ G-47 Trooper suffers critical hit (Burn). 02000_ G-47 Trooper destroyed. 02003_ Acquired 52 matter. 02005_ Acquired 21 matter. 02008_ Aluminum Leg fries itself beyond repair. 02044_ Acquired derelict log, extracted data. World map confirmed: -8/Storage. 02076_ Sub. Optics shoots sparks and powers down. 02076_ Dropped Broken Sub. Optics. 02123_ QU-9U6(g) destroyed. 02127_ HI-P1U(g) destroyed. 02131_ Aluminum Leg destroyed. 02137_ 2F-VUU(R): "ARGHSUB!" Map ----- +----------------------------------------------------+ | ???????????????????????????????????????????# | | ???????????????????????????????????????????## | | ????????????????????????????????????????????## | | ?????????????????????????????????????????????## | | ??????????????????????????????????????????????## | | ???????????????????????????????????????????????# | | ???????????????????????????????????????????????## | | ????????????????????????????????????????????????# | | ????????????????????????????????????????????????## | | ?????????????????????????????????????????????????? | | ????????????????????????????????????????????????# | | ???????????????????????????? ??????????????????# | | ??????????????????????????? ????????????? | | ??????????????????????????? ????????? | | ??????????????????????????? # ????????? ### | | ??????????????????????????? ##???????????### | | ??????????????????????????? #?????????????# | | ??????????????????????????# #?????????????# | | ??????????$?####?????????? ?????????????? | | ??????????? # ?????????? ?????????????? | | ???????????? ##??###### #??????????????# | | ????????????## #### ; #?????????????? | | ??????###?###< ##;; #?????????????# | | ????### ### ##????????????# | | ???## # ## #????? # | | ???# #????#;; @ #?????? #? | | ???# ###### #???????? ?? | | ????# #; % #???????????? | | ????# ;### #???????????? | | ????# =% ;; ;;#????? #??????????? | | ##### ! ## ## ?????????????????? | | # #### ;### ? ????????????????? | | #??####; ; R ;#??? ?? ???????????????? | | ##????### %;???? ?? ##??????????????? | | #??????###R #???? ???#???????????????? | | #????????%" ##???? ??????????????????? | | #???????##""#????? ##??????????????????? | | ##???????? ????? ???????????????????? | | #?????????? ?????? ???????????????????? | | #?????????? ?????? ???????????????????? | | ??????? #??????#?????????????????????? | | ??????????????????????????????????? | | # #### "????????????????????????????????? | | # #???????????????????????????????????????? | | ??????????????????????????????????????? | | ?????????????????????????????????????? | | ???????????????????????????????????? | | ## ## #???????????????????????????????????? | | ?#####?#######???????????????????????????????????? | | ?????????????????????????????????????????????????? | +----------------------------------------------------+ Best States ------------- Heat Dissipation 25 Energy Generation 10 Energy Capacity 250 Matter Stores 300 Matter Capacity 300 Sight Range 21 Robot Scan Range 14 Terrain Scan Density 10 Evasion (%) 55 Item Schematics ----------------- None Robot Schematics ------------------ None Fabricated ------------ Nothing Repaired ---------- Nothing Alien Tech Used ----------------- None Achievements -------------- None Challenges ------------ None Game ------ Seed SpacefoldCompactTendrils Manual? 0 Play Time 00:27:01 Cumulative 7.2 hours Start 2025.06.23 @ 14:20:07 End 2025.06.23 @ 14:46:24 Sessions 1 Manual Loads 0 Difficulty Rogue Special Mode None Game No. 7 Rogue 7 Adventurer 0 Explorer 0 Win Type - Total 0 Types 0/0/0/0/0/0/0/0/0/0 Lore% 2 Gallery% 8 Achievement% 10 Wizard Run 0 Options --------- Layout 1 ASCII 0 Keyboard 0 Movement Mouse Keybinds 0 Fullscreen 1 Font 32/SmallcapsGlow Map View 50x35 Zoom Use 0% Tactical HUD 1 Map Filters NONE Filters NONE Steam 1 RUN: cac5ba64-214c-4bd8-9b18-e2ba4e3c1be3